[Event "4th EFE Metz Festival-WIM"]
[Site "Metz"]
[Date "2018.07.28"]
[Round "8"]
[White "Schweitzer, Victoria"]
[Black "Soubirou, Oriane"]
[Result "0-1"]
[ECO "B06"]
[WhiteElo "2097"]
[BlackElo "2105"]
[Annotator "ChessBase"]
[PlyCount "152"]
[EventDate "2018.07.22"]
[EventType "tourn"]
[EventCountry "FRA"]
[SourceTitle "playchess.com"]
[Source "ChessBase"]
[SourceQuality "1"]
[TimeControl "5400+30"]

1. e4 {[%emt 0:00:00]} g6 {[%emt 0:27:26]} 2. d4 {[%emt 0:00:00]} Nf6 {[%emt 0:00:08]} 3. Nc3 {[%emt 0:00:00]} d5 {[%emt 0:00:05]} 4. e5 {[%emt 0:01:15]} Ne4 5. Nce2 {[%emt 0:07:02]} f6 {[%emt 0:01:27]} 6. f3 {[%emt 0:00:59]} Ng5 {[%emt 0:00:17]} 7. Bxg5 {[%emt 0:00:20]} fxg5 {[%emt 0:00:08]} 8. Qd2 {[%emt 0:00:13]} e6 {[%emt 0:00:35]} 9. Nh3 {[%emt 0:00:14]} Be7 {[%emt 0:00:19]} 10. Nf2 {[%emt 0:00:22]} c5 {[%emt 0:00:43]} 11. dxc5 {[%emt 0:05:17]} Nc6 {[%emt 0:01:50]} 12. Nd3 {[%emt 0:00:08]} Qc7 {[%emt 0:00:39]} 13. Nc3 Nxe5 {[%emt 0:02:26]} 14. O-O-O {[%emt 0:02:38]} Nc4 {[%emt 0:00:50]} 15. Qf2 {[%emt 0:01:35]} O-O {[%emt 0:05:29]} 16. Nb1 {[%emt 0:47:04]} b6 {[%emt 0:21:48]} 17. b3 {[%emt 0:00:47]} Bf6 {[%emt 0:00:20]} 18. h4 {[%emt 0:03:17]} gxh4 {[%emt 0:01:40]} 19. bxc4 {[%emt 0:04:02]} dxc4 {[%emt 0:00:25]} 20. Nd2 {[%emt 0:09:39]} cxd3 {[%emt 0:00:23]} 21. Bxd3 {[%emt 0:00:23]} Qe5 {[%emt 0:00:51]} 22. Ne4 {[%emt 0:00:35]} Be7 {[%emt 0:02:58]} 23. c6 {[%emt 0:01:01]} Qa1+ {[%emt 0:03:34]} 24. Kd2 {[%emt 0:00:01]} Qxa2 {[%emt 0:00:30]} 25. Rxh4 {[%emt 0:01:43]} Qa5+ {[%emt 0:00:26]} 26. Ke2 {[%emt 0:00:31]} Ba6 {[%emt 0:03:25]} 27. Rh3 {[%emt 0:03:41]} Bxd3+ {[%emt 0:05:15]} 28. cxd3 {[%emt 0:00:40]} Qa2+ {[%emt 0:01:02]} 29. Rd2 {[%emt 0:01:24]} Qd5 {[%emt 0:00:12]} 30. c7 {[%emt 0:02:40]} Rac8 {[%emt 0:01:59]} 31. Qg3 {[%emt 0:00:44]} Rf5 {[%emt 0:06:19]} 32. Rh1 {[%emt 0:01:42]} Qe5 {[%emt 0:01:19]} 33. Qf2 {[%emt 0:00:51]} Rxc7 {[%emt 0:01:16]} 34. g4 {[%emt 0:00:18]} Rf8 {[%emt 0:00:44]} 35. Qe3 {[%emt 0:02:47]} Qf4 {[%emt 0:00:53]} 36. Qf2 {[%emt 0:01:27]} Bc5 {[%emt 0:01:37]} 37. Nxc5 {[%emt 0:00:49]} Rxc5 {[%emt 0:00:08]} 38. Rh3 {[%emt 0:01:32]} Rc1 {[%emt 0:01:51]} 39. d4 {[%emt 0:01:00]} Rc3 {[%emt 0:02:50]} 40. Ra2 {[%emt 0:00:22]} Rfc8 {[%emt 0:00:47]} 41. Kf1 {[%emt 0:00:55]} Qc1+ {[%emt 0:00:08]} 42. Qe1 {[%emt 0:00:25]} Qxe1+ {[%emt 0:03:01]} 43. Kxe1 {[%emt 0:00:01]} R8c7 {[%emt 0:01:06]} 44. Kd2 {[%emt 0:00:02]} Rb3 {[%emt 0:00:26]} 45. Rc2 {[%emt 0:01:21]} Rxc2+ {[%emt 0:00:50]} 46. Kxc2 {[%emt 0:00:00]} Re3 {[%emt 0:00:30]} 47. Kd2 {[%emt 0:00:04]} Ra3 {[%emt 0:00:05]} 48. Ke2 {[%emt 0:00:06]} a5 {[%emt 0:00:18]} 49. Rh1 {[%emt 0:00:01]} Rc3 {[%emt 0:01:41]} 50. Rb1 {[%emt 0:00:10]} Rc6 {[%emt 0:00:20]} 51. Kd3 {[%emt 0:00:02]} Kg7 {[%emt 0:00:20]} 52. g5 {[%emt 0:00:36]} h5 {[%emt 0:00:16]} 53. gxh6+ {[%emt 0:00:06]} Kxh6 {[%emt 0:00:07]} 54. Rb5 {[%emt 0:00:02]} Kg7 {[%emt 0:00:40]} 55. f4 {[%emt 0:00:24]} Kf7 {[%emt 0:00:38]} 56. Ke4 {[%emt 0:00:24]} Kf6 {[%emt 0:00:43]} 57. Kd3 {[%emt 0:00:12]} Ke7 {[%emt 0:00:29]} 58. Rg5 {[%emt 0:00:44]} Kf7 {[%emt 0:01:16]} 59. Rb5 {[%emt 0:00:02]} Kf6 {[%emt 0:00:55]} 60. Ke4 {[%emt 0:00:02]} Rd6 {[%emt 0:00:08]} 61. Kd3 {[%emt 0:00:11]} a4 {[%emt 0:00:45]} 62. Ke4 {[%emt 0:00:44]} a3 {[%emt 0:01:03]} 63. Rb3 {[%emt 0:00:40]} b5 {[%emt 0:00:26]} 64. Rxa3 {[%emt 0:00:07]} b4 {[%emt 0:00:10]} 65. Rb3 {[%emt 0:03:01]} Rb6 {[%emt 0:00:04]} 66. Ke3 {[%emt 0:00:29]} Ke7 {[%emt 0:00:59]} 67. Ke4 {[%emt 0:00:02]} Kd6 {[%emt 0:00:07]} 68. d5 {[%emt 0:01:48]} exd5+ {[%emt 0:00:34]} 69. Kd4 {[%emt 0:00:00]} Kc6 {[%emt 0:01:21]} 70. Rg3 {[%emt 0:02:18]} Kb5 {[%emt 0:00:05]} 71. Kxd5 {[%emt 0:00:10]} Ka4 {[%emt 0:00:22]} 72. Kc5 {[%emt 0:00:16]} Rf6 {[%emt 0:00:33]} 73. Rg4 {[%emt 0:01:17]} Ka3 {[%emt 0:00:32]} 74. Rg1 {[%emt 0:00:40]} b3 {[%emt 0:00:32]} 75. Ra1+ {[%emt 0:00:29]} Kb2 {[%emt 0:00:01]} 76. Rf1 {[%emt 0:00:23]} Ka2 {[%emt 0:00:24]} 0-1

[Event "4th EFE Metz Festival-WIM"]
[Site "Metz"]
[Date "2018.07.29"]
[Round "9"]
[White "Terbe, Julianna"]
[Black "Zozulia, Anna"]
[Result "1/2-1/2"]
[ECO "E62"]
[WhiteElo "2238"]
[BlackElo "2300"]
[Annotator "NA"]
[PlyCount "147"]
[EventDate "2018.07.22"]
[EventType "tourn"]
[EventCountry "FRA"]
[SourceTitle "playchess.com"]
[Source "ChessBase"]
[SourceQuality "1"]
[TimeControl "5400+30"]

1. Nf3 {[%emt 0:00:00]} Nf6 {[%emt 0:00:42]} 2. g3 {[%emt 0:00:00]} g6 {[%emt 0:00:38]} 3. Bg2 {[%emt 0:00:00]} Bg7 {[%emt 0:00:05]} 4. O-O {[%emt 0:00:00]} O-O {[%emt 0:00:06]} 5. d4 {[%emt 0:00:01]} d6 {[%emt 0:02:16]} 6. c4 {[%emt 0:00:05]} c6 {[%emt 0:00:35]} 7. Nc3 {[%emt 0:00:05]} Qa5 {[%emt 0:13:41]} 8. Bd2 {[%emt 0:00:17]} Nbd7 {[%emt 0:12:10]} 9. e4 {[%emt 0:21:11]} Qc7 {[%emt 0:01:09]} 10. Qe2 {[%emt 0:03:04]} e5 {[%emt 0:00:43]} 11. d5 {[%emt 0:02:42]} a5 {[%emt 0:04:59]} 12. Rfc1 {[%emt 0:01:23]} Nc5 {[%emt 0:00:36]} 13. Ne1 {[%emt 0:00:30]} Bg4 {[%emt 0:07:29]} 14. f3 {[%emt 0:03:24]} Bd7 {[%emt 0:00:09]} 15. Be3 {[%emt 0:01:18]} b6 {[%emt 0:04:49]} 16. Nd3 {[%emt 0:07:35]} Qb7 {[%emt 0:06:01]} 17. Rab1 {[%emt 0:00:59]} a4 {[%emt 0:12:04]} 18. Rc2 {[%emt 0:05:40]} Rfc8 {[%emt 0:03:48]} 19. Nb4 {[%emt 0:03:54]} Na6 {[%emt 0:07:59]} 20. Nxa6 {[%emt 0:00:44]} Qxa6 {[%emt 0:01:09]} 21. dxc6 {[%emt 0:02:17]} Bxc6 {[%emt 0:00:57]} 22. Bf1 {[%emt 0:00:33]} Nd7 {[%emt 0:03:09]} 23. Qd1 {[%emt 0:03:14]} Bf8 {[%emt 0:06:49]} 24. c5 {[%emt 0:00:40]} Qa5 {[%emt 0:00:03]} 25. cxd6 {[%emt 0:00:38]} Qb4 {[%emt 0:00:03]} 26. Nd5 {[%emt 0:15:59]} Bxd5 {[%emt 0:02:25]} 27. Rxc8 {[%emt 0:00:09]} Rxc8 {[%emt 0:00:03]} 28. Qxd5 {[%emt 0:00:05]} Qxd6 {[%emt 0:05:31]} 29. Rd1 {[%emt 0:02:20]} Qxd5 {[%emt 0:00:12]} 30. Rxd5 {[%emt 0:00:04]} Nc5 {[%emt 0:03:55]} 31. Rxe5 {[%emt 0:10:49]} Bg7 {[%emt 0:00:08]} 32. Re7 {[%emt 0:00:02]} Bf6 {[%emt 0:01:01]} 33. Ra7 {[%emt 0:00:09]} Bxb2 {[%emt 0:00:06]} 34. Bc4 {[%emt 0:00:26]} Ne6 {[%emt 0:00:21]} 35. Bxe6 {[%emt 0:00:17]} fxe6 {[%emt 0:00:04]} 36. Rxa4 {[%emt 0:00:05]} Rc3 {[%emt 0:01:09]} 37. Bh6 {[%emt 0:02:16]} Ba3 {[%emt 0:00:53]} 38. Ra8+ {[%emt 0:01:19]} Kf7 {[%emt 0:00:03]} 39. Ra7+ {[%emt 0:00:06]} Ke8 {[%emt 0:00:48]} 40. Rxh7 {[%emt 0:01:57]} Bc5+ {[%emt 0:01:05]} 41. Kg2 {[%emt 0:00:32]} Rc2+ {[%emt 0:00:04]} 42. Kh3 {[%emt 0:00:03]} Rxa2 {[%emt 0:00:04]} 43. Bf4 {[%emt 0:00:57]} b5 {[%emt 0:00:35]} 44. Be5 {[%emt 0:01:15]} Be7 {[%emt 0:01:13]} 45. Rg7 {[%emt 0:04:09]} g5 {[%emt 0:00:10]} 46. Rg8+ {[%emt 0:03:20]} Kf7 {[%emt 0:00:37]} 47. Rb8 {[%emt 0:00:23]} b4 {[%emt 0:00:10]} 48. Rb6 {[%emt 0:01:52]} Rf2 {[%emt 0:00:41]} 49. Bd6 {[%emt 0:02:12]} Bxd6 {[%emt 0:00:09]} 50. Rxd6 {[%emt 0:00:01]} Rxf3 {[%emt 0:00:42]} 51. Rb6 {[%emt 0:00:03]} b3 {[%emt 0:00:48]} 52. Kg4 {[%emt 0:00:01]} Rf2 {[%emt 0:00:06]} 53. Rxb3 {[%emt 0:00:13]} Rxh2 {[%emt 0:00:20]} 54. Kxg5 {[%emt 0:00:04]} Ke7 {[%emt 0:01:13]} 55. e5 {[%emt 0:01:27]} Rf2 {[%emt 0:00:37]} 56. Rb7+ {[%emt 0:00:23]} Kf8 {[%emt 0:00:04]} 57. g4 {[%emt 0:00:17]} Rf3 {[%emt 0:00:11]} 58. Kh6 {[%emt 0:01:43]} Rg3 {[%emt 0:01:10]} 59. g5 {[%emt 0:00:21]} Rh3+ {[%emt 0:00:03]} 60. Kg6 {[%emt 0:00:09]} Rf3 {[%emt 0:00:03]} 61. Kh5 {[%emt 0:02:10]} Rh3+ {[%emt 0:00:17]} 62. Kg4 {[%emt 0:00:01]} Re3 {[%emt 0:00:14]} 63. Kf4 {[%emt 0:00:29]} Re1 {[%emt 0:00:07]} 64. g6 {[%emt 0:00:10]} Rg1 {[%emt 0:01:05]} 65. g7+ {[%emt 0:00:02]} Kg8 {[%emt 0:00:20]} 66. Rc7 {[%emt 0:00:16]} Rg2 {[%emt 0:00:47]} 67. Re7 {[%emt 0:00:25]} Rg6 {[%emt 0:00:06]} 68. Ke4 {[%emt 0:00:24]} Rxg7 {[%emt 0:01:02]} 69. Rxe6 {[%emt 0:01:05]} Kf7 {[%emt 0:00:10]} 70. Kd5 {[%emt 0:01:13]} Rg1 {[%emt 0:00:13]} 71. Ra6 {[%emt 0:00:16]} Rd1+ {[%emt 0:00:07]} 72. Ke4 {[%emt 0:00:04]} Re1+ {[%emt 0:00:09]} 73. Kd5 {[%emt 0:00:04]} Rd1+ {[%emt 0:00:03]} 74. Ke4 1/2-1/2

[Event "4th EFE Metz Festival-WIM"]
[Site "Metz"]
[Date "2018.07.29"]
[Round "9"]
[White "Terbe, Zsuzsanna"]
[Black "Broly, Mathilde"]
[Result "1/2-1/2"]
[ECO "D78"]
[WhiteElo "2178"]
[BlackElo "2149"]
[Annotator "NA"]
[PlyCount "67"]
[EventDate "2018.07.22"]
[EventType "tourn"]
[EventCountry "FRA"]
[SourceTitle "playchess.com"]
[Source "ChessBase"]
[SourceQuality "1"]
[TimeControl "5400+30"]

1. Nf3 {[%emt 0:00:00]} d5 {[%emt 0:00:10]} 2. g3 {[%emt 0:00:00]} g6 {[%emt 0:00:06]} 3. Bg2 {[%emt 0:00:00]} Bg7 {[%emt 0:00:05]} 4. d4 {[%emt 0:00:00]} Nf6 {[%emt 0:01:00]} 5. c4 {[%emt 0:00:05]} c6 {[%emt 0:00:37]} 6. O-O {[%emt 0:00:54]} O-O {[%emt 0:00:52]} 7. Qb3 {[%emt 0:00:06]} a5 {[%emt 0:06:41]} 8. cxd5 {[%emt 0:06:25]} a4 {[%emt 0:03:24]} 9. Qd1 {[%emt 0:01:32]} cxd5 {[%emt 0:01:54]} 10. Nc3 {[%emt 0:00:16]} Bd7 {[%emt 0:00:09]} 11. Ne5 {[%emt 0:00:28]} e6 {[%emt 0:00:11]} 12. b4 {[%emt 0:31:28]} axb3 {[%emt 0:16:55]} 13. Qxb3 {[%emt 0:00:11]} Nc6 {[%emt 0:00:23]} 14. Nxc6 {[%emt 0:00:12]} bxc6 {[%emt 0:01:39]} 15. Ba3 {[%emt 0:02:08]} Re8 {[%emt 0:00:08]} 16. e3 {[%emt 0:00:15]} e5 {[%emt 0:06:14]} 17. dxe5 {[%emt 0:00:17]} Rxe5 {[%emt 0:02:03]} 18. Bc5 {[%emt 0:05:56]} Rh5 {[%emt 0:09:30]} 19. Rac1 {[%emt 0:11:47]} Bh3 {[%emt 0:03:08]} 20. Bxh3 {[%emt 0:01:09]} Rxh3 {[%emt 0:00:47]} 21. Kg2 {[%emt 0:00:09]} Rh5 {[%emt 0:01:16]} 22. Ne2 {[%emt 0:02:05]} g5 {[%emt 0:06:22]} 23. Rh1 {[%emt 0:04:06]} Qc8 {[%emt 0:05:03]} 24. h3 {[%emt 0:00:40]} Ne4 {[%emt 0:01:42]} 25. Bd4 {[%emt 0:07:00]} Rh6 {[%emt 0:04:45]} 26. Bxg7 {[%emt 0:03:39]} Kxg7 {[%emt 0:00:07]} 27. Qb2+ {[%emt 0:01:21]} Rf6 {[%emt 0:01:59]} 28. Rhf1 {[%emt 0:00:45]} Qa6 {[%emt 0:09:38]} 29. Rc2 {[%emt 0:03:52]} h6 {[%emt 0:04:41]} 30. Nd4 {[%emt 0:03:31]} Nxg3 {[%emt 0:05:17]} 31. Kxg3 {[%emt 0:06:30]} Qxf1 {[%emt 0:00:19]} 32. Nf5+ {[%emt 0:00:02]} Kg6 {[%emt 0:00:12]} 33. Ne7+ {[%emt 0:00:07]} Kg7 {[%emt 0:00:26]} 34. Nf5+ {[%emt 0:00:05]} 1/2-1/2

[Event "4th EFE Metz Festival-WIM"]
[Site "Metz"]
[Date "2018.07.29"]
[Round "9"]
[White "Thomas, Anysia"]
[Black "Schweitzer, Victoria"]
[Result "1-0"]
[ECO "E71"]
[WhiteElo "2156"]
[BlackElo "2097"]
[Annotator "NA"]
[PlyCount "118"]
[EventDate "2018.07.22"]
[EventType "tourn"]
[EventCountry "FRA"]
[SourceTitle "playchess.com"]
[Source "ChessBase"]
[SourceQuality "1"]
[TimeControl "5400+30"]

1. d4 {[%emt 0:00:00]} Nf6 {[%emt 0:00:14]} 2. c4 {[%emt 0:00:00]} g6 {[%emt 0:00:10]} 3. Nc3 {[%emt 0:00:00]} Bg7 {[%emt 0:00:07]} 4. e4 {[%emt 0:00:00]} d6 {[%emt 0:00:29]} 5. h3 {[%emt 0:00:03]} O-O {[%emt 0:00:15]} 6. Nf3 {[%emt 0:00:06]} c5 {[%emt 0:00:20]} 7. d5 {[%emt 0:00:20]} a6 {[%emt 0:00:36]} 8. a4 {[%emt 0:02:02]} e6 {[%emt 0:00:18]} 9. Bd3 {[%emt 0:00:18]} exd5 {[%emt 0:00:10]} 10. exd5 {[%emt 0:00:05]} Re8+ {[%emt 0:02:16]} 11. Be3 {[%emt 0:00:07]} Bh6 {[%emt 0:03:37]} 12. O-O {[%emt 0:00:34]} Bxe3 {[%emt 0:00:15]} 13. fxe3 {[%emt 0:00:03]} Qe7 {[%emt 0:00:57]} 14. e4 {[%emt 0:01:06]} Nbd7 {[%emt 0:00:25]} 15. Qd2 {[%emt 0:01:24]} Kg7 {[%emt 0:00:45]} 16. Rf2 {[%emt 0:04:47]} Ng8 {[%emt 0:03:06]} 17. Raf1 {[%emt 0:09:18]} f6 {[%emt 0:00:18]} 18. Ne2 {[%emt 0:04:32]} Ne5 {[%emt 0:00:24]} 19. Nxe5 {[%emt 0:01:32]} Qxe5 {[%emt 0:00:12]} 20. a5 {[%emt 0:08:44]} Bd7 {[%emt 0:00:17]} 21. b4 {[%emt 0:00:42]} Rac8 {[%emt 0:04:48]} 22. bxc5 {[%emt 0:06:15]} Rxc5 {[%emt 0:00:15]} 23. Rb1 {[%emt 0:00:21]} Bc8 {[%emt 0:00:20]} 24. Kh1 {[%emt 0:05:29]} Nh6 {[%emt 0:00:47]} 25. Ng1 {[%emt 0:01:42]} Rf8 {[%emt 0:03:20]} 26. Nf3 {[%emt 0:02:06]} Qg3 {[%emt 0:00:44]} 27. Nd4 {[%emt 0:02:56]} Rc7 {[%emt 0:03:17]} 28. Rb6 {[%emt 0:14:30]} Nf7 {[%emt 0:07:33]} 29. Nf3 {[%emt 0:03:58]} g5 {[%emt 0:03:49]} 30. Bf1 {[%emt 0:10:14]} Re7 {[%emt 0:15:55]} 31. Nd4 {[%emt 0:06:18]} Rxe4 {[%emt 0:02:36]} 32. Rxb7 {[%emt 0:01:12]} Qa3 {[%emt 0:21:55]} 33. Rc7 {[%emt 0:03:09]} Qa1 {[%emt 0:02:31]} 34. Nc2 {[%emt 0:04:00]} Qe5 {[%emt 0:01:41]} 35. Bd3 {[%emt 0:04:12]} Rh4 {[%emt 0:03:15]} 36. Re2 {[%emt 0:02:19]} Qb2 {[%emt 0:00:57]} 37. Ree7 {[%emt 0:00:20]} Qb8 {[%emt 0:05:20]} 38. Ne3 {[%emt 0:02:44]} Kg8 {[%emt 0:02:24]} 39. Nf5 {[%emt 0:00:50]} Bxf5 {[%emt 0:09:27]} 40. Bxf5 {[%emt 0:00:04]} Ne5 {[%emt 0:01:32]} 41. Rg7+ {[%emt 0:00:22]} Kh8 {[%emt 0:00:01]} 42. Rxh7+ Rxh7 {[%emt 0:00:02]} 43. Rxh7+ {[%emt 0:00:13]} Kg8 {[%emt 0:00:03]} 44. Qc2 {[%emt 0:00:44]} Re8 {[%emt 0:03:08]} 45. Be6+ {[%emt 0:00:13]} Rxe6 {[%emt 0:00:37]} 46. dxe6 {[%emt 0:00:04]} Qb4 {[%emt 0:00:02]} 47. e7 Qb8 {[%emt 0:00:44]} 48. Rh5 {[%emt 0:02:19]} Kf7 {[%emt 0:01:07]} 49. Qf5 {[%emt 0:01:04]} Kxe7 {[%emt 0:00:24]} 50. Rh7+ {[%emt 0:00:02]} Nf7 {[%emt 0:00:01]} 51. Qe4+ {[%emt 0:00:28]} Kf8 {[%emt 0:00:37]} 52. Qg6 {[%emt 0:00:42]} Qe8 {[%emt 0:00:20]} 53. Qxf6 {[%emt 0:00:58]} Qe1+ {[%emt 0:00:02]} 54. Kh2 {[%emt 0:00:06]} Qe5+ {[%emt 0:00:01]} 55. Qxe5 {[%emt 0:00:05]} Nxe5 {[%emt 0:00:05]} 56. Ra7 {[%emt 0:00:14]} Nxc4 {[%emt 0:00:07]} 57. Rxa6 {[%emt 0:00:05]} Ke7 {[%emt 0:00:03]} 58. Ra7+ {[%emt 0:00:12]} Ke6 {[%emt 0:00:12]} 59. a6 {[%emt 0:00:04]} Kd5 1-0

[Event "4th EFE Metz Festival-WIM"]
[Site "Metz"]
[Date "2018.07.29"]
[Round "9"]
[White "Afraoui, Anaelle"]
[Black "Moskalets, Svetlana"]
[Result "0-1"]
[ECO "B33"]
[WhiteElo "2056"]
[BlackElo "2208"]
[Annotator "NA"]
[PlyCount "79"]
[EventDate "2018.07.22"]
[EventType "tourn"]
[EventCountry "FRA"]
[SourceTitle "playchess.com"]
[Source "ChessBase"]
[SourceQuality "1"]
[TimeControl "5400+30"]

1. e4 {[%emt 0:00:00]} c5 {[%emt 0:00:27]} 2. Nf3 {[%emt 0:00:00]} Nc6 {[%emt 0:00:55]} 3. d4 {[%emt 0:00:00]} cxd4 {[%emt 0:00:01]} 4. Nxd4 {[%emt 0:00:00]} Nf6 {[%emt 0:00:10]} 5. Nc3 {[%emt 0:00:10]} e6 {[%emt 0:00:15]} 6. Nxc6 {[%emt 0:00:17]} bxc6 {[%emt 0:00:16]} 7. e5 {[%emt 0:00:06]} Nd5 {[%emt 0:00:01]} 8. Ne4 {[%emt 0:00:12]} Qc7 {[%emt 0:00:53]} 9. f4 {[%emt 0:00:09]} Qa5+ {[%emt 0:04:44]} 10. Kf2 f5 {[%emt 0:02:33]} 11. exf6 {[%emt 0:06:07]} Nxf6 {[%emt 0:00:10]} 12. Nxf6+ {[%emt 0:05:46]} gxf6 {[%emt 0:00:01]} 13. Be3 {[%emt 0:00:54]} Bb7 {[%emt 0:06:04]} 14. Be2 {[%emt 0:06:53]} Bc5 {[%emt 0:06:15]} 15. Qd3 {[%emt 0:03:24]} O-O-O {[%emt 0:09:35]} 16. Rhe1 {[%emt 0:04:48]} e5 {[%emt 0:02:03]} 17. fxe5 {[%emt 0:05:15]} fxe5 {[%emt 0:00:30]} 18. Kg1 {[%emt 0:01:08]} e4 {[%emt 0:00:53]} 19. Qb3 {[%emt 0:00:45]} Rhg8 {[%emt 0:02:32]} 20. Bf1 {[%emt 0:02:53]} Bd6 {[%emt 0:04:14]} 21. Rad1 {[%emt 0:05:51]} Bc7 {[%emt 0:12:40]} 22. Kh1 {[%emt 0:07:02]} Qe5 {[%emt 0:07:11]} 23. Bg1 {[%emt 0:03:05]} d5 {[%emt 0:00:32]} 24. Qh3+ {[%emt 0:05:07]} Kb8 {[%emt 0:02:31]} 25. Qb3 {[%emt 0:04:24]} Ba5 {[%emt 0:14:53]} 26. Bxa7+ {[%emt 0:14:06]} Kxa7 {[%emt 0:01:58]} 27. Qa4 {[%emt 0:00:55]} d4 {[%emt 0:04:09]} 28. b4 {[%emt 0:01:17]} e3 {[%emt 0:01:07]} 29. bxa5 {[%emt 0:02:01]} c5 {[%emt 0:01:59]} 30. Rb1 {[%emt 0:06:48]} Bxg2+ {[%emt 0:01:50]} 31. Bxg2 {[%emt 0:00:27]} Rxg2 {[%emt 0:00:01]} 32. Kxg2 {[%emt 0:11:15]} Qe4+ {[%emt 0:02:02]} 33. Kh3 {[%emt 0:01:00]} Qf3+ {[%emt 0:00:50]} 34. Kh4 {[%emt 0:00:06]} Qf4+ {[%emt 0:00:43]} 35. Kh3 {[%emt 0:00:16]} Qf3+ {[%emt 0:02:04]} 36. Kh4 {[%emt 0:00:08]} Qe4+ {[%emt 0:03:25]} 37. Kh3 {[%emt 0:00:32]} Rd6 {[%emt 0:00:18]} 38. Rf1 {[%emt 0:05:02]} Rh6+ {[%emt 0:02:07]} 39. Kg3 {[%emt 0:00:24]} Rd6 40. Kh3 0-1